Cogmind - Beta 13 X1 @@@ ROGUE MODE // 2023.06.26 @ 18:59:10 Player: Plexion Result: Exoskeleton Destroyed Performance ------------- Evolutions (9) 4500 Regions Visited (33) 6600 Robots Destroyed (183) 915 Value Destroyed (7738) 7738 Prototype IDs (90) 1800 Alien Tech Used (16) 3200 Bonus (25510) 25510 TOTAL SCORE: 50263 Bonus ------- Triggered Max Security 3000 High Alert Combat Kills 2054 Follower Combat Kills 373 Aligned with FarCom 300 Met Data Miner 300 Met Imprinter 300 Met Zhirov 300 Met Warlord at Base 500 MAIN.C Attacked Warlord 500 Used Core Reset Matrix 3000 Integrated Exoskeleton 5000 Destroyed MAIN.C Guards 500 Met MAIN.C 5000 Destroyed MAIN.C Shell 5000 Friendly Fire -617 Cogmind --------- Core Integrity 0/1600 Matter 425/425 Energy 171/200 System Corruption 4% Temperature Cool (0) Movement Walking (30) Location -1/Command Parts ------- > --- POWER (1) -------- (None) > --- PROPULSION (3) --- Sigix Exoskeleton > --- UTILITY (6) ------ Large Storage Unit Experimental Core Analyzer > --- WEAPON (3) ------- Sigix Sheargun Sigix Sheargun Sigix Sheargun > --- INVENTORY (15) --- Advanced Force Field High-powered Transdimensional Reconstructor Integrity Redistributor Microwarp Drive Sigix Sheargun Core Cannon Sigix Broadsword Peak State ------------ > --- POWER ------------ Light Quantum Reactor > --- PROPULSION ------- Sigix Exoskeleton > --- UTILITY ---------- Large Storage Unit Experimental Targeting Computer Experimental Target Analyzer Experimental Core Analyzer Thermal Barrier AEGIS Remote Shield > --- WEAPON ----------- Sigix Sheargun Sigix Sheargun Sigix Sheargun > --- INVENTORY -------- Advanced Energy Well Triangulator Advanced Transmission Jammer Advanced Force Field High-powered Transdimensional Reconstructor Integrity Redistributor Terrabomb Microwarp Drive Sigix Sheargun Sigix Sheargun Core Cannon Sigix Broadsword [Rating: 258] Favorites ----------- Power Light Ion Engine Engine Light Ion Engine Power Core Micro Fission Core Reactor Micro Antimatter Reactor Propulsion Improved VTOL Module Treads Light Treads Leg Sigix Exoskeleton Flight Unit Improved VTOL Module Utility Makeshift Hacking Suite Device Experimental Sensor Array Storage High-capacity Storage Unit Processor Improved Signal Interpreter Hackware Makeshift Hacking Suite Protection Light Armor Plating Artifact Microwarp Drive Weapon Gauss Rifle Energy Gun Sigix Sheargun Energy Cannon Compact HERF Cannon Ballistic Gun Gauss Rifle Ballistic Cannon Mass Driver Launcher Grenade Launcher Special Weapon RU-N14's Throwing Claymores Impact Weapon Impact Mace Slashing Weapon Sigix Broadsword Piercing Weapon CR-A16's Pointy Stick Build | -11 -10 -10 -10 -9 -8 -8 -7 -7 -7 -7 -6 -6 -6 -6 -6 -5 -5 -5 -5 -5 -4 -4 -4 -4 -4 -3 -3 -3 -3 -2 -2 -1 -1 ------- Run | Jun Mat Min Exi Min Mat Sto Fac Low Low Dat Pro Fac Low Low Zio Pro Fac Upp Upp War Pro Fac Upp Upp Zhi Pro Res Qua Sec Res Tes Acc Com Slots Evolved 18 | . . . . . 4 . 2 . . . . 2 . . . . 2 . . . . 2 . . . . 2 . . 2 . 2 . Power 1 | . . . . . . . . . . . . . . . . . 1 . . . . . . . . . . . . . . . . Propulsion 5 | . . . . . 2 . . . . . . . . . . . 1 . . . . 1 . . . . 1 . . . . . . Utility 11 | . . . . . 2 . 2 . . . . 2 . . . . . . . . . 1 . . . . 1 . . 1 . 2 . Weapon 1 | . . . . . . . . . . . . . . . . . . . . . . . . . . . . . . 1 . . . Parts Attached 368 | 6 5 5 1 4 34 26 25 4 2 . 1 4 14 1 7 5 11 3 8 6 7 18 7 5 7 11 8 11 22 33 7 25 35 Power 21 | 1 . . . . 4 2 1 . . . . . 1 . 3 . 1 . . . 1 . . . 2 . 1 1 1 2 . . . Engine 10 | 1 . . . . 3 2 . . . . . . 1 . 3 . . . . . . . . . . . . . . . . . . Core 5 | . . . . . 1 . 1 . . . . . . . . . 1 . . . 1 . . . 1 . . . . . . . . Reactor 6 | . . . . . . . . . . . . . . . . . . . . . . . . . 1 . 1 1 1 2 . . . Propulsion 35 | 2 2 . . . 12 8 4 . . . . . . . . . 1 . . 2 . 2 . . . . 2 . . . . . . Treads 23 | 2 2 . . . 12 7 . . . . . . . . . . . . . . . . . . . . . . . . . . . Leg . | . . . . . . . . . . . . . . . . . . . . . . . . . . . . . . . . . . Wheel . | . . . . . . . . . . . . . . . . . . . . . . . . . . . . . . . . . . Hover . | . . . . . . . . . . . . . . . . . . . . . . . . . . . . . . . . . . Flight 12 | . . . . . . 1 4 . . . . . . . . . 1 . . 2 . 2 . . . . 2 . . . . . . Utility 217 | 1 2 . 1 1 8 2 8 1 2 . 1 2 11 1 2 3 9 1 4 3 4 16 3 3 4 5 5 5 16 30 7 24 32 Device 136 | . . . . . 1 2 2 . 1 . . 1 6 1 2 2 7 1 2 2 2 10 3 1 3 4 3 2 10 20 4 20 24 Storage 11 | 1 1 . 1 . . . 1 . . . . . . . . . . . . 1 . 1 . . . . 1 . 2 1 . . 1 Processor 25 | . 1 . . 1 . . 2 . . . . . 1 . . . 1 . . . . 2 . . . . . . . 8 1 1 7 Hackware 15 | . . . . . 1 . 2 1 1 . . 1 1 . . . 1 . . . . 2 . 1 . . 1 1 . 1 . 1 . Protection 23 | . . . . . 6 . 1 . . . 1 . 3 . . 1 . . 2 . 2 1 . 1 1 1 . 1 2 . . . . Artifact 7 | . . . . . . . . . . . . . . . . . . . . . . . . . . . . 1 2 . 2 2 . Weapon 95 | 2 1 5 . 3 10 14 12 3 . . . 2 2 . 2 2 . 2 4 1 2 . 4 2 1 6 . 5 5 1 . 1 3 Energy Gun 8 | 1 . 3 . . . . . . . . . . . . . . . . . . . . . . . . . . . 1 . . 3 Energy Cannon 9 | . . . . . . . 3 1 . . . 1 . . . . . . . . . . . . . . . 2 2 . . . . Ballistic Gun 25 | 1 . . . 2 9 8 2 1 . . . 1 1 . . . . . . . . . . . . . . . . . . . . Ballistic Cannon 5 | . . . . . . . . . . . . . . . . . . . . . . . 2 . . 3 . . . . . . . Launcher 7 | . 1 1 . . . 3 1 . . . . . . . . . . . 1 . . . . . . . . . . . . . . Special Weapon 6 | . . . . . . . . . . . . . . . 1 1 . 1 1 . 1 . . 1 . . . . . . . . . Impact Weapon 13 | . . 1 . 1 . . 5 1 . . . . 1 . . 1 . 1 2 . . . . . . . . . . . . . . Slashing Weapon 10 | . . . . . 1 3 1 . . . . . . . . . . . . . . . . . . . . 1 3 . . 1 . Piercing Weapon 12 | . . . . . . . . . . . . . . . 1 . . . . 1 1 . 2 1 1 3 . 2 . . . . . Special Melee Weapon . | . . . . . . . . . . . . . . . . . . . . . . . . . . . . . . . . . . Unidentified Prototypes 40 | . . . . . 2 2 1 . . . . . . . 1 . 2 1 . 5 . 3 . . 4 . . 3 1 . 2 1 12 Parts Lost 21 | . 2 . . . 7 6 . . . . . . . . . 1 . . 1 . . . . 1 . . . . . . . . 3 Power 5 | . . . . . 3 2 . . . . . . . . . . . . . . . . . . . . . . . . . . . Propulsion 2 | . 2 . . . . . . . . . . . . . . . . . . . . . . . . . . . . . . . . Utility 11 | . . . . . 3 2 . . . . . . . . . 1 . . 1 . . . . 1 . . . . . . . . 3 Weapon 3 | . . . . . 1 2 . . . . . . . . . . . . . . . . . . . . . . . . . . . Highest Loss Streak 5 | . 2 . . . 5 3 . . . . . . . . . 1 . . 1 . . . . 1 . . . . . . . . 2 To Critical Strikes . | . . . . . . . . . . . . . . . . . . . . . . . . . . . . . . . . . . Average Slot Usage (%) 94 | . 90 100 100 100 97 87 97 100 100 100 100 92 99 100 100 99 92 100 95 95 100 100 100 100 99 100 90 88 82 72 72 76 80 Engine 5 | . 14 14 14 14 7 4 1 . . . . . 5 6 6 6 5 5 5 5 4 . . . . . . . . . . . . Core 2 | . . . . . . 2 5 7 7 7 7 6 . . . . 1 5 5 5 5 10 10 10 10 10 5 . . . . . . Reactor 1 | . . . . . . . . . . . . . . . . . . . . . . . . . . . 3 8 9 9 9 7 6 Treads 15 | . 27 28 28 28 35 36 . . . . . . . . . . . . . . . . . . . . . . . . . . . Flight 11 | . . . . . . . 29 30 30 30 30 26 26 26 26 26 25 29 29 29 29 31 31 31 31 31 23 23 19 . . . . Device 5 | . . . . . . 3 6 7 5 7 7 5 5 4 6 5 11 11 10 12 16 15 15 14 14 14 14 13 12 3 . 15 15 Storage 8 | . 14 14 14 14 9 9 7 7 7 7 7 6 6 6 6 6 5 5 5 5 5 5 5 5 5 5 4 4 6 9 9 7 7 Processor 8 | . 4 14 14 14 . . 14 15 10 7 7 6 12 13 13 13 11 11 11 11 11 10 10 10 10 10 9 9 7 14 13 7 18 Hackware 8 | . . . . . 7 . 14 15 20 23 23 26 26 26 26 25 17 17 12 11 11 15 15 15 15 15 19 19 15 . . 7 1 Protection 4 | . . . . . 17 14 . . . . . 4 . 1 . . . . . . . . . . . . . . . . . . . Energy Gun 4 | . 13 10 14 5 . . . . . . . . . . . . . . . . . . . . . . . . 3 26 27 22 22 Ballistic Gun 9 | . 14 14 14 21 17 16 6 7 7 7 7 2 6 6 3 . . . . . . . . . . . . . . . . . . Impact Weapon 1 | . . . . 1 . . 5 6 7 7 7 6 5 6 6 6 5 5 4 3 . . . . . . . . . . . . . Piercing Weapon 1 | . . . . . . . . . . . . . . . 2 6 5 5 5 7 10 10 9 10 10 9 9 4 . . . . . Naked Turns . | . . . . . . . . . . . . . . . . . . . . . . . . . . . . . . . . . . Heaviest Build 78 | 11 27 27 46 48 75 78 71 19 19 19 19 19 19 19 17 18 22 22 22 24 30 37 35 42 35 37 43 50 50 60 62 73 75 Greatest Support 86 | 40 40 40 40 40 80 86 86 20 20 20 20 20 20 20 20 20 26 26 26 30 30 37 37 37 37 37 52 52 80 80 80 80 80 Greatest Overweight (x) 1 | . . . 1 1 . . 1 . . . . . . . . . . . . . . . . 1 . . . . . . . . . Average Overweight (x) . | . . . . 1 . . . . . . . . . . . . . . . . . . . . . . . . . . . . . Largest Inventory Capacity 20 | 8 15 15 20 20 20 20 20 8 8 8 8 8 8 8 8 8 8 8 8 8 8 10 10 10 10 10 15 15 15 15 15 15 15 Average Capacity 14 | 7 10 15 18 20 20 20 8 8 8 8 8 8 8 8 8 8 8 8 8 8 8 9 10 10 10 10 13 15 14 15 15 15 15 Most Carried 20 | 2 14 12 17 20 20 20 20 8 8 5 8 8 8 8 8 8 8 8 7 8 8 10 10 10 10 10 15 15 15 15 15 15 15 Average Carried 13 | 1 7 12 13 18 19 19 8 7 6 5 5 7 7 8 7 8 7 7 7 7 7 7 9 9 9 10 12 14 14 13 13 14 14 Final Capacity 20 | 8 15 15 20 20 20 20 8 8 8 8 8 8 8 8 8 8 8 8 8 8 8 10 10 10 10 10 15 15 15 15 15 15 15 Final Carried 20 | 2 12 12 17 20 20 20 8 8 5 5 8 8 8 8 8 8 7 7 7 8 8 10 10 9 10 10 15 15 13 15 13 15 10 Class Distribution -------------------- 21% | Mutant 19% | Hacker-Scout 15% | Scavenger-Mutant 11% | Alien-Sigix 11% | Commander-Mutant 9% | Hacker-Sprinter 4% | Wizard-Scout 3% | Hacker-Ninja Dominant Class ---------------- Mutant | -10/Materials Commander-Mutant | -10/Mines Commander-Mutant | -10/Exiles Mutant | -9/Mines Mutant | -8/Materials Scavenger-Mutant | -8/Storage Hacker-Scout | -7/Factory Hacker-Scout | -7/Lower Caves Hacker-Sprinter | -7/Lower Caves Hacker-Sprinter | -7/Data Miner Hacker-Sprinter | -6/Proximity Caves Hacker-Sprinter | -6/Factory Hacker-Sprinter | -6/Lower Caves Hacker-Sprinter | -6/Lower Caves Hacker-Sprinter | -6/Zion Hacker-Sprinter | -5/Proximity Caves Hacker-Scout | -5/Factory Hacker-Scout | -5/Upper Caves Hacker-Scout | -5/Upper Caves Hacker-Scout | -5/Warlord Hacker-Ninja | -4/Proximity Caves Hacker-Scout | -4/Factory Hacker-Scout | -4/Upper Caves Hacker-Scout | -4/Upper Caves Hacker-Scout | -4/Zhirov Hacker-Scout | -3/Proximity Caves Wizard-Scout | -3/Research Wizard-Scout | -3/Quarantine Wizard-Ninja | -3/Section 7 Alien-Sigix | -2/Research Alien-Sigix | -2/Testing Alien-Sigix | -1/Access Alien-Sigix | -1/Command Resources | -11 -10 -10 -10 -9 -8 -8 -7 -7 -7 -7 -6 -6 -6 -6 -6 -5 -5 -5 -5 -5 -4 -4 -4 -4 -4 -3 -3 -3 -3 -2 -2 -1 -1 ----------- Run | Jun Mat Min Exi Min Mat Sto Fac Low Low Dat Pro Fac Low Low Zio Pro Fac Upp Upp War Pro Fac Upp Upp Zhi Pro Res Qua Sec Res Tes Acc Com Matter Collected 5716 | 260 201 105 . 72 1480 893 194 169 18 . 28 . 110 . 70 11 227 101 82 . 150 30 172 99 95 94 . 35 281 174 . 219 346 Remotely . | . . . . . . . . . . . . . . . . . . . . . . . . . . . . . . . . . . Salvage Created 10362 | . 369 95 . 41 2217 1095 154 243 . . . . 48 . . 35 199 100 72 . 320 30 49 35 395 149 . 35 249 182 . 124 4126 Parts 508 | . 27 4 . 5 134 69 18 . . . . . . . . 4 1 . 2 . 4 1 . 7 7 . . . 22 9 . 6 188 Haulers Intercepted 9 | . 2 . . . 5 2 . . . . . . . . . . . . . . . . . . . . . . . . . . . Recyclers Shooed 3 | . . . . . 1 1 . . . . . . . . . . . . . . . . . . . . . . . . . 1 . Parts Field Recycled . | . . . . . . . . . . . . . . . . . . . . . . . . . . . . . . . . . . Retrieved Matter . | . . . . . . . . . . . . . . . . . . . . . . . . . . . . . . . . . . Parts Self-Destructed 33 | . . . . . . . . . . . 14 . . . . 2 . 6 1 . . . 3 2 5 . . . . . . . . Prevented 1 | . . . . . . . . . . . . . . . . . . . . . . . . 1 . . . . . . . . . Kills | -11 -10 -10 -10 -9 -8 -8 -7 -7 -7 -7 -6 -6 -6 -6 -6 -5 -5 -5 -5 -5 -4 -4 -4 -4 -4 -3 -3 -3 -3 -2 -2 -1 -1 ------- Run | Jun Mat Min Exi Min Mat Sto Fac Low Low Dat Pro Fac Low Low Zio Pro Fac Upp Upp War Pro Fac Upp Upp Zhi Pro Res Qua Sec Res Tes Acc Com Combat Hostiles Destroyed 125 | . 10 1 . 3 34 24 7 . . . . . . . . 4 . . 5 . 1 . . 4 . . . . 3 1 . . 28 Melee 3 | . . . . . . . . . . . . . . . . . . . . . . . . . . . . . 3 . . . . Guns 93 | . 7 1 . 3 34 19 . . . . . . . . . . . . . . . . . . . . . . . 1 . . 28 Cannons 2 | . . . . . . . . . . . . . . . . 1 . . . . . . . 1 . . . . . . . . . AOE 27 | . 3 . . . . 5 7 . . . . . . . . 3 . . 5 . 1 . . 3 . . . . . . . . . Classes Destroyed 26 | . 5 3 . . 5 2 . . . . . . 1 . . . 1 . 1 . 2 . . . . . . . 1 . . . 5 Worker 18 | . 1 . . . 5 2 1 . . . . . . . . . 2 . . . . . . . . . . . 1 2 . . 4 Builder 2 | . . 1 . . . 1 . . . . . . . . . . . . . . . . . . . . . . . . . . . Tunneler 2 | . . . . . . . . . . . . . . . . . 1 . . . . . . . . . . . . 1 . . . Hauler 9 | . 2 . . . 5 2 . . . . . . . . . . . . . . . . . . . . . . . . . . . Recycler 8 | . . 1 . . . 2 . . . . . . . . . . 1 . . . . . . . . . . . . . . 1 3 Minesweeper 1 | . . . . . . . . . . . . . . . . . . . 1 . . . . . . . . . . . . . . Mechanic 2 | . 1 . . . 1 . . . . . . . . . . . . . . . . . . . . . . . . . . . . Operator 3 | . . . . . 1 1 . . . . . . . . . . . . . . . 1 . . . . . . . . . . . Watcher 13 | . . . . . 4 . 2 . . . . . . . . . . . . . . . . . . . . 1 2 . . . 4 Swarmer 44 | . 6 . . 3 3 7 7 . . . . . . . . 4 . . 5 . . . . 4 . . . . . . . . 5 Cutter 1 | . . . . . . . . . . . . . . . . . . . . . . . . . . . . . 1 . . . . Grunt 36 | . 4 . . . 19 9 . . . . . . . . . . . . . . . . . . . . . . . . . . 4 Brawler 2 | . . . . . . 1 . . . . . . . . . . . . . . . . . . . . . . . . . . 1 Duelist 2 | . . . . . . 2 . . . . . . . . . . . . . . . . . . . . . . . . . . . Sentry 13 | . . . . . 8 4 . . . . . . . . . . . . . . . . . . . . . . . 1 . . . Demolisher 1 | . . 1 . . . . . . . . . . . . . . . . . . . . . . . . . . . . . . . Hunter 8 | . . . . . 3 1 . . . . . . . . . . . . . . . . . . . . . . 2 . . . 2 Programmer 4 | . . . . . . . . . . . . . . . . . . . . . 1 . . . . . . . . . . . 3 Heavy 1 | . . . . . 1 . . . . . . . . . . . . . . . . . . . . . . . . . . . . M Guard 2 | . . . . . . . . . . . . . . . . . . . . . . . . . . . . . . . . . 2 M Shell/Def 1 | . . . . . . . . . . . . . . . . . . . . . . . . . . . . . . . . . 1 Combat Programmer 2 | . . . . . . . . . . . . . . . . . . . . . . . . . . . . . . . . . 2 Striker 2 | . . . . . . . . . . . . . . . . . . . . . . . . . . . . . . . . . 2 Executioner 3 | . . . . . . . . . . . . . . . . . . . . . . . . . . . . . . . . . 3 Alpha 7 2 | . . . . . . . . . . . . . . . . . . . . . . . . . . . . . . . . . 2 Decomposer 3 | . . . . . . . . . . . . . . . . . . . . . . . 3 . . . . . . . . . . Packrat 2 | . . . . . . . . . . . . . . . . . . . . . . . . . . 2 . . . . . . . Samaritan 2 | . . . . . . . . . . . . . 1 . . . . . . . 1 . . . . . . . . . . . . Tinkerer 1 | . . . . . . . . . . . . . . . . . . . . . 1 . . . . . . . . . . . . Assembled 1 | . . . . . . . . . . . . . . . . . . . . . . . . . . . . . . . . . 1 Best Kill Streak 10 | . 4 2 . 3 5 7 10 . . . . . . . . 4 2 . 5 . 1 1 . 4 . . . 1 2 3 . 1 4 Combat Bots Only 7 | . 3 1 . 3 5 7 7 . . . . . . . . 4 . . 5 . 1 . . 4 . . . . 2 1 . . 4 Max Kills in Single Turn 4 | . 2 2 . 1 2 2 3 . . . . . 1 . . 2 1 . 4 . 1 1 1 3 . 1 . 1 1 1 . 1 2 Gunslinging 1 | . . . . . 1 . . . . . . . . . . . . . . . . . . . . . . . . . . . 1 Exploded 4 | . 2 . . . . 2 2 . . . . . . . . 2 . . 4 . 1 . . 2 . . . . . . . . . Melee 1 | . . . . . . . . . . . . . . . . . . . . . . . . . . . . . 1 . . . . Uniques/NPCs Destroyed 1 | . . . . . . . . . . . . . . . . . . . . . . . . . . . . . . . . . 1 MAIN.C Shell (-1/Command) Combat | -11 -10 -10 -10 -9 -8 -8 -7 -7 -7 -7 -6 -6 -6 -6 -6 -5 -5 -5 -5 -5 -4 -4 -4 -4 -4 -3 -3 -3 -3 -2 -2 -1 -1 -------- Run | Jun Mat Min Exi Min Mat Sto Fac Low Low Dat Pro Fac Low Low Zio Pro Fac Upp Upp War Pro Fac Upp Upp Zhi Pro Res Qua Sec Res Tes Acc Com Damage Taken 10433 | . 559 79 . 17 2265 1642 177 . 34 . 19 . 32 . . 66 . 13 172 . 23 . . 93 . 23 . 90 283 56 350 83 4357 Core 2257 | . 147 . . . 213 145 . . 14 . 5 . . . . . . . 17 . . . . . . . . . 48 17 246 61 1344 Absorbed by Shields 2043 | . . . . . . . . . . . . . . . . . . . . . . . . . . . . . . . . 33 2010 Redirected to Shielding 15 | . . . . . . . . . . . . . . . . . . . . . 15 . . . . . . . . . . . . Ignored by Resistances 6778 | . . . . . . . . . . . . . . . . . . . . . . . . . . . . . . 58 158 66 6496 Regen/Repaired (Parts) 289 | . . . . . . . . . . . . . . . 23 . . . . 26 . . . . . . . 90 150 . . . . Core Remaining (%) 82 | 100 . . . 41 . 34 . . . . 97 . . . . 100 . . . . 98 . . . . 100 . . 91 . 81 . . Volleys Fired 547 | . 39 3 . 4 157 76 10 1 . . 9 . 11 . . 2 . 1 3 . 3 . 3 2 . 3 . 2 4 33 11 38 132 Largest 3 | . 2 2 . 2 2 2 1 1 . . 1 . 1 . . 1 . 1 1 . 1 . 1 1 . 1 . 1 2 3 2 3 3 Hottest 300 | . 70 70 . 43 56 56 120 120 . . 28 . 28 . . . . . 33 . . . 57 . . 57 . 94 200 300 200 300 300 Shots Fired 1091 | . 75 5 . 8 305 148 10 1 . . 9 . 11 . . 2 . 1 3 . 3 . 3 2 . 3 . 2 6 51 13 40 390 Gun 1053 | . 73 4 . 8 305 145 . . . . 9 . 11 . . . . . . . . . . . . . . . 4 51 13 40 390 Cannon 16 | . . . . . . . 5 1 . . . . . . . . . . . . . . 3 . . 3 . 2 2 . . . . Launcher 13 | . 2 1 . . . 3 5 . . . . . . . . . . . 2 . . . . . . . . . . . . . . Special 9 | . . . . . . . . . . . . . . . . 2 . 1 1 . 3 . . 2 . . . . . . . . . Kinetic 523 | . 37 2 . 8 305 145 . . . . 9 . 11 . . . . . . . . . 3 . . 3 . . . . . . . Thermal 45 | . 36 2 . . . . 5 1 . . . . . . . . . . . . . . . . . . . . 1 . . . . Explosive 22 | . 2 1 . . . 3 5 . . . . . . . . 2 . 1 3 . 3 . . 2 . . . . . . . . . Electromagnetic 3 | . . . . . . . . . . . . . . . . . . . . . . . . . . . . 2 1 . . . . Slashing 498 | . . . . . . . . . . . . . . . . . . . . . . . . . . . . . 4 51 13 40 390 Robot Hit Streak 29 | . 6 1 . 6 15 21 1 . . . . . . . . 2 . . . . 2 . . 3 . . . 4 . . . 3 29 Robot Miss Streak 6 | . 3 1 . 2 6 3 1 . . . . . . . . . . . . . 1 . . . . . . . . . 1 . 4 Penetration Max 1 | . . . . . 1 1 . . . . . . . . . . . . . . . . . . . . . . . 1 . . 1 Secondary Targets 10 | . . . . . 3 4 . . . . . . . . . . . . . . . . . . . . . . . . . . 3 Max Gunslinging Chain 1 | . . . . . 1 1 . . . . . . . . . . . . . . . . . . . . . . . . . . 1 Shots Hit Robots 640 | . 41 3 . 5 207 102 3 13 1 . . . 1 . . 1 4 2 1 . 11 4 3 1 6 2 . 1 8 . . 3 217 Core Hits 331 | . 24 4 . 3 85 44 13 . . . . . . . . 3 1 . 7 . 7 3 . 3 3 . . . 6 5 . 1 119 Critical Kills 4 | . . . . . 2 . 1 . . . . . . . . . 1 . . . . . . . . . . . . . . . . Critical Parts Destroyed 11 | . . . . . 5 3 . 2 . . . . 1 . . . . . . . . . . . . . . . . . . . . Critical Strikes 29 | . 1 . . . 7 3 1 2 . . . . 1 . . . 1 . . . 2 . . . . . . . . . . . 11 Burn 1 | . 1 . . . . . . . . . . . . . . . . . . . . . . . . . . . . . . . . Destroy 10 | . . . . . 7 3 . . . . . . . . . . . . . . . . . . . . . . . . . . . Smash 5 | . . . . . . . 1 2 . . . . 1 . . . 1 . . . . . . . . . . . . . . . . Sever 12 | . . . . . . . . . . . . . . . . . . . . . 1 . . . . . . . . . . . 11 Sunder 1 | . . . . . . . . . . . . . . . . . . . . . 1 . . . . . . . . . . . . Melee Attacks 421 | . . 2 . 9 6 18 33 25 2 . 14 5 36 . 2 9 26 26 16 15 21 17 18 2 7 29 7 20 53 . . 3 . Impact 204 | . . 2 . 9 . . 33 25 2 . 14 5 36 . 2 6 22 22 13 13 . . . . . . . . . . . . . Slashing 82 | . . . . . 6 18 . . . . . . . . . . . . . . . . . . . . . 2 53 . . 3 . Piercing 106 | . . . . . . . . . . . . . . . . 3 4 4 3 2 14 14 12 1 6 21 7 15 . . . . . Entropic 29 | . . . . . . . . . . . . . . . . . . . . . 7 3 6 1 1 8 . 3 . . . . . Sneak Attacks 17 | . . . . . . 1 . . . . . . 1 . . . 4 . 1 . 3 1 3 . . 2 . . 1 . . . . Combat Hostiles . | . . . . . . . . . . . . . . . . . . . . . . . . . . . . . . . . . . Follow-up Attacks 1 | . . . . . . . . . . . . . . . . . . . . . 1 . . . . . . . . . . . . Damage Inflicted 36928 | . 727 100 . 55 4326 2698 596 1243 41 . . . 87 . . 468 504 158 509 . 1134 209 259 519 482 163 . 74 741 971 33 222 20609 Guns 28365 | . 442 14 . 55 4265 1911 . . . . . . . . . . . . . . . . . . . . . . . 971 . 176 20531 Cannons 151 | . . . . . . . 77 . . . . . . . . . . . . . . . . . . . . 74 . . . . . Explosions 2801 | . 269 81 . . . 559 402 . . . . . . . . 398 . . 422 . 136 . . 488 . . . . . . . 46 . Melee 5134 | . . . . . . 126 117 1243 41 . . . 87 . . . 504 158 87 . 917 209 259 . 482 163 . . 741 . . . . Ramming 295 | . 16 5 . . 61 102 . . . . . . . . . . . . . . . . . . . . . . . . 33 . 78 Kinetic 6408 | . 163 14 . 55 4265 1911 . . . . . . . . . . . . . . . . . . . . . . . . . . . Thermal 356 | . 279 . . . . . 77 . . . . . . . . . . . . . . . . . . . . . . . . . . Explosive 2801 | . 269 81 . . . 559 402 . . . . . . . . 398 . . 422 . 136 . . 488 . . . . . . . 46 . Electromagnetic 74 | . . . . . . . . . . . . . . . . . . . . . . . . . . . . 74 . . . . . Impact 2237 | . . . . . . . 117 1243 41 . . . 87 . . . 504 158 87 . . . . . . . . . . . . . . Slashing 22727 | . . . . . . 126 . . . . . . . . . 70 . . . . 81 . . 31 . . . . 741 971 . 176 20531 Piercing 1631 | . . . . . . . . . . . . . . . . . . . . . 518 209 259 . 482 163 . . . . . . . Entropic 399 | . . . . . . . . . . . . . . . . . . . . . 399 . . . . . . . . . . . . Highest Corruption 11 | . . . . . . 11 . . . . . . . . . . . . . . . . . . . . . . . . 1 1 4 Average Corruption 3 | . . . . . . 5 . . . . . . . . . . . . . . . . . . . . . . . . 1 1 1 Corruption Purged . | . . . . . . . . . . . . . . . . . . . . . . . . . . . . . . . . . . Corruption Blocked . | . . . . . . . . . . . . . . . . . . . . . . . . . . . . . . . . . . Effects 43 | . . . . . . 26 . . . . . . . . . . . . . . . . . . . . . . . . . 2 15 Message Errors 8 | . . . . . . 6 . . . . . . . . . . . . . . . . . . . . . . . . . . 2 Matter Fused 12 | . . . . . . 11 . . . . . . . . . . . . . . . . . . . . . . . . . . 1 Heat Flow Errors 7 | . . . . . . 2 . . . . . . . . . . . . . . . . . . . . . . . . . 1 4 Energy Discharges 5 | . . . . . . 2 . . . . . . . . . . . . . . . . . . . . . . . . . . 3 Data Loss (minor) 3 | . . . . . . 2 . . . . . . . . . . . . . . . . . . . . . . . . . 1 . Data Loss (major) 4 | . . . . . . 2 . . . . . . . . . . . . . . . . . . . . . . . . . . 2 Alerts 1 | . . . . . . . . . . . . . . . . . . . . . . . . . . . . . . . . . 1 Misdirections 1 | . . . . . . 1 . . . . . . . . . . . . . . . . . . . . . . . . . . . Weapon Failures 2 | . . . . . . . . . . . . . . . . . . . . . . . . . . . . . . . . . 2 Overload Shots . | . . . . . . . . . . . . . . . . . . . . . . . . . . . . . . . . . . Overflow Damage 2843 | . 52 . . . . 49 11 1171 1 . . . 87 . . 18 324 123 79 . 116 29 237 99 226 147 . 19 46 . . . 9 Projectiles 48 | . . . . . . . . . . . . . . . . . 13 . . . 16 . . . . . . 19 . . . . . Explosions 237 | . 52 . . . . 23 11 . . . . . . . . 18 . . 32 . 2 . . 99 . . . . . . . . . Melee 2558 | . . . . . . 26 . 1171 1 . . . 87 . . . 311 123 47 . 98 29 237 . 226 147 . . 46 . . . 9 Knockbacks 5 | . . . . . . 1 . . . . . . . . . . 2 . 1 . . . . . . . . . . . . . 1 Impact 4 | . . . . . . 1 . . . . . . . . . . 1 . 1 . . . . . . . . . . . . . 1 Kinetic . | . . . . . . . . . . . . . . . . . . . . . . . . . . . . . . . . . . Secondary 1 | . . . . . . . . . . . . . . . . . 1 . . . . . . . . . . . . . . . . Self-Inflicted Damage 220 | . 57 35 . . . 70 51 . . . . . . . . . . . . . . . . . . . . . . . . 7 . Shots 9 | . 2 1 . . . 3 2 . . . . . . . . . . . . . . . . . . . . . . . . 1 . Rammed 22 | . 3 2 . . 8 9 . . . . . . . . . . . . . . . . . . . . . . . . . . . Targets Rammed 33 | . 3 2 . . 9 12 . . . . . . . . . . . . . . . . . . . . . . 1 . 2 . 4 Kicked 7 | . . . . . . . . . . . . . . . . . . . . . . . . . . . . . 1 . 2 . 4 Crushed 4 | . . . . . 1 3 . . . . . . . . . . . . . . . . . . . . . . . . . . . Highest Temperature 423 | . 222 30 . 4 38 283 222 74 . . . . 7 . . . 109 170 132 68 82 423 10 . . 14 . . 50 . 49 130 155 Average Temperature 47 | . 70 18 . 2 7 80 82 31 . . . . 4 . . . 49 44 39 25 20 119 5 . . 9 . . 27 . 49 130 116 Received Heat Transfer 1783 | . 84 . . . 828 459 . . . . . . 12 . . . . . . . . . . . . 12 . 9 . 18 245 . 116 Effects 1 | . . . . . . 1 . . . . . . . . . . . . . . . . . . . . . . . . . . . Energy Bleed 1 | . . . . . . 1 . . . . . . . . . . . . . . . . . . . . . . . . . . . Siege Activations . | . . . . . . . . . . . . . . . . . . . . . . . . . . . . . . . . . . Robots Corrupted 1 | . . . . . . . . . . . . . . . . . . . . . . . . . . . . 1 . . . . . Combat Hostiles . | . . . . . . . . . . . . . . . . . . . . . . . . . . . . . . . . . . Parts Fried 14 | . . . . . . . . 2 . . . . 2 . . . 4 1 3 . . . . . . . . 2 . . . . . Impact Corruptions 70 | . . . . . 1 . . 48 1 . . . 2 . . . 9 6 2 . . . . . . . . . . . . . 1 Robots Melted . | . . . . . . . . . . . . . . . . . . . . . . . . . . . . . . . . . . Combat Hostiles . | . . . . . . . . . . . . . . . . . . . . . . . . . . . . . . . . . . Parts Melted 3 | . 2 . . . . . . . . . . . . . . . . . . . . . . . . . . . . . . . 1 Heat Transferred 1048 | . 888 . . . . . 160 . . . . . . . . . . . . . . . . . . . . . . . . . . Parts Sabotaged . | . . . . . . . . . . . . . . . . . . . . . . . . . . . . . . . . . . Parts Stolen 2 | . . . . . . . . . 2 . . . . . . . . . . . . . . . . . . . . . . . . Parts Stripped . | . . . . . . . . . . . . . . . . . . . . . . . . . . . . . . . . . . Power Chain Reactions . | . . . . . . . . . . . . . . . . . . . . . . . . . . . . . . . . . . Missiles Intercepted 5 | . . . . . . . . . . . . . . . . . . . . . . . . . . . . . . . . . 5 Alert | -11 -10 -10 -10 -9 -8 -8 -7 -7 -7 -7 -6 -6 -6 -6 -6 -5 -5 -5 -5 -5 -4 -4 -4 -4 -4 -3 -3 -3 -3 -2 -2 -1 -1 ------- Run | Jun Mat Min Exi Min Mat Sto Fac Low Low Dat Pro Fac Low Low Zio Pro Fac Upp Upp War Pro Fac Upp Upp Zhi Pro Res Qua Sec Res Tes Acc Com Peak Influence 1801 | . 161 128 . 81 519 461 200 . . . . 140 . . . . 142 . . . . 80 . . . . 37 191 1600 1641 1801 1214 1279 Initial 1100 | . . 62 . . . 154 127 . . . . 75 . . . . 50 . . . . . . . . . . 20 107 1100 1100 1100 728 Average 314 | . 61 57 . 16 252 244 115 . . . . 90 . . . . 110 . . . . 25 . . . . 26 103 191 1339 1435 1130 1036 Maximum Alert Level 5 | . . . . . 2 2 1 . . . . . . . . . . . . . . . . . . . . . 5 5 5 4 4 Low Security (%) 56 | 100 100 100 . 100 40 36 98 . . . . 100 . . . . 100 . . . . 100 . . . . 100 100 56 . . . . Level 1 20 | . . . . . 39 51 1 . . . . . . . . . . . . . . . . . . . . . 42 . . . . Level 2 7 | . . . . . 20 11 . . . . . . . . . . . . . . . . . . . . . . . . . . . Level 3 4 | . . . . . . . . . . . . . . . . . . . . . . . . . . . . . . . . 12 53 Level 4 10 | . . . . . . . . . . . . . . . . . . . . . . . . . . . . . . 87 44 87 46 Level 5 . | . . . . . . . . . . . . . . . . . . . . . . . . . . . . . . . . . . High Security . | . . . . . . . . . . . . . . . . . . . . . . . . . . . . . . . . . . Max Security 1 | . . . . . . . . . . . . . . . . . . . . . . . . . . . . . . 12 55 . . Squads Dispatched 39 | . 1 . . . 5 3 . . . . . . . . . . 1 . . . . . . . . . 1 1 4 4 11 6 2 Investigation 5 | . 1 . . . . . . . . . . . . . . . 1 . . . . . . . . . 1 . . 1 1 . . Extermination 3 | . . . . . . . . . . . . . . . . . . . . . . . . . . . . 1 1 . . . 1 Reinforcement 15 | . . . . . 5 1 . . . . . . . . . . . . . . . . . . . . . . 3 3 2 1 . Assault 11 | . . . . . . 2 . . . . . . . . . . . . . . . . . . . . . . . . 6 2 1 Garrison 5 | . . . . . . . . . . . . . . . . . . . . . . . . . . . . . . . 2 3 . Intercept . | . . . . . . . . . . . . . . . . . . . . . . . . . . . . . . . . . . Searches Triggered . | . . . . . . . . . . . . . . . . . . . . . . . . . . . . . . . . . . Data Miner Redirects 3 | . . . . . . . . . . . . . . . . . . . . . . . . . . . . . . . . 2 1 Construction Impeded 2 | . . . . . 2 . . . . . . . . . . . . . . . . . . . . . . . . . . . . Haulers Reinforced 1 | . . . . . . . . . . . . . . . . . . . . . . . . . . . . . . 1 . . . Active Scanning Responses . | . . . . . . . . . . . . . . . . . . . . . . . . . . . . . . . . . . Cargo Convoy Interrupts . | . . . . . . . . . . . . . . . . . . . . . . . . . . . . . . . . . . Stealth | -11 -10 -10 -10 -9 -8 -8 -7 -7 -7 -7 -6 -6 -6 -6 -6 -5 -5 -5 -5 -5 -4 -4 -4 -4 -4 -3 -3 -3 -3 -2 -2 -1 -1 --------- Run | Jun Mat Min Exi Min Mat Sto Fac Low Low Dat Pro Fac Low Low Zio Pro Fac Upp Upp War Pro Fac Upp Upp Zhi Pro Res Qua Sec Res Tes Acc Com Distress Signals 25 | . . . . . 4 1 2 . . . . 1 . . . . . . . . . 1 . . . . . . 2 10 2 . 2 Communications Jammed 25 | . . . . . . . . . . . . . . . . . . . . . . . . . . . . . . . . . 25 Distress Signals 25 | . . . . . . . . . . . . . . . . . . . . . . . . . . . . . . . . . 25 Times Spotted 294 | . 23 5 . 4 61 33 9 . 5 . 3 5 5 4 . 5 . 3 10 . 1 6 . 10 . 6 . 4 11 5 20 . 56 Peak Tracking Total 23 | . 5 3 . 4 6 9 5 . 3 . 3 5 1 3 . 4 . 3 5 . 1 4 . 8 . 4 . 2 4 23 23 2 16 Tactical Retreats 33 | . 2 . . 1 5 2 . . 1 . . 1 1 . . . . 3 2 . . . . 4 . 1 . 1 1 1 3 . 4 Traps | -11 -10 -10 -10 -9 -8 -8 -7 -7 -7 -7 -6 -6 -6 -6 -6 -5 -5 -5 -5 -5 -4 -4 -4 -4 -4 -3 -3 -3 -3 -2 -2 -1 -1 ------- Run | Jun Mat Min Exi Min Mat Sto Fac Low Low Dat Pro Fac Low Low Zio Pro Fac Upp Upp War Pro Fac Upp Upp Zhi Pro Res Qua Sec Res Tes Acc Com Traps Triggered 8 | . 1 . . . 1 2 . . . . . . . . . . . . . . . . . . . . . . . . 2 1 1 Indirectly . | . . . . . . . . . . . . . . . . . . . . . . . . . . . . . . . . . . Trap Hack Attempts . | . . . . . . . . . . . . . . . . . . . . . . . . . . . . . . . . . . Triggered . | . . . . . . . . . . . . . . . . . . . . . . . . . . . . . . . . . . Disarmed 6 | . . . . . . . . . . . . . . . . . . . . . . . . . . . 6 . . . . . . Reprogrammed . | . . . . . . . . . . . . . . . . . . . . . . . . . . . . . . . . . . Reused . | . . . . . . . . . . . . . . . . . . . . . . . . . . . . . . . . . . Traps Extracted . | . . . . . . . . . . . . . . . . . . . . . . . . . . . . . . . . . . Installed . | . . . . . . . . . . . . . . . . . . . . . . . . . . . . . . . . . . Triggered 3 | . . . . . . . . . . . . . . . . . . . . 2 . . . 1 . . . . . . . . . Machines | -11 -10 -10 -10 -9 -8 -8 -7 -7 -7 -7 -6 -6 -6 -6 -6 -5 -5 -5 -5 -5 -4 -4 -4 -4 -4 -3 -3 -3 -3 -2 -2 -1 -1 ---------- Run | Jun Mat Min Exi Min Mat Sto Fac Low Low Dat Pro Fac Low Low Zio Pro Fac Upp Upp War Pro Fac Upp Upp Zhi Pro Res Qua Sec Res Tes Acc Com Machines Disabled 41 | . . . . . 3 7 . . . . . . . . . 1 . 1 . . . . . . . . . 6 8 2 3 5 5 Max in Single Turn 1 | . . . . . 1 1 . . . . . . . . . 1 . 1 . . . . . . . . . 1 1 1 1 1 1 Garrison Access 8 | . . . . . 1 1 1 . . . . . . . . . 1 . . . . 1 . . . . . 1 1 1 . . . Machines Repaired . | . . . . . . . . . . . . . . . . . . . . . . . . . . . . . . . . . . Machines Sabotaged . | . . . . . . . . . . . . . . . . . . . . . . . . . . . . . . . . . . Overloaded Fab Kills . | . . . . . . . . . . . . . . . . . . . . . . . . . . . . . . . . . . Hacking | -11 -10 -10 -10 -9 -8 -8 -7 -7 -7 -7 -6 -6 -6 -6 -6 -5 -5 -5 -5 -5 -4 -4 -4 -4 -4 -3 -3 -3 -3 -2 -2 -1 -1 --------- Run | Jun Mat Min Exi Min Mat Sto Fac Low Low Dat Pro Fac Low Low Zio Pro Fac Upp Upp War Pro Fac Upp Upp Zhi Pro Res Qua Sec Res Tes Acc Com Machines Accessed 79 | . 2 . 2 1 7 10 7 1 1 3 . . . . 1 . 6 1 . 2 . 6 2 . 4 . 5 8 7 . 1 1 1 Terminals 50 | . 2 . . 1 5 9 5 . 1 . . . . . . . 3 . . . . 4 . . . . 4 7 6 . 1 1 1 Fabricators 4 | . . . . . . . . . . . . . . . . . 2 . . . . 1 . . . . 1 . . . . . . Repair Stations . | . . . . . . . . . . . . . . . . . . . . . . . . . . . . . . . . . . Recycling Units . | . . . . . . . . . . . . . . . . . . . . . . . . . . . . . . . . . . Scanalyzers 1 | . . . . . 1 . . . . . . . . . . . . . . . . . . . . . . . . . . . . Garrison Access 8 | . . . . . 1 1 2 . . . . . . . . . 1 . . . . 1 . . . . . 1 1 . . . . Total Hacks 218 | . 3 . 2 2 14 22 36 1 1 22 . . . . 6 . 15 5 . 2 . 15 8 . 17 . 16 18 8 . 2 1 2 Successful 147 | . 3 . 2 1 6 7 11 1 1 22 . . . . 6 . 8 5 . 2 . 9 8 . 17 . 14 17 6 . . . 1 Failed 71 | . . . . 1 8 15 25 . . . . . . . . . 7 . . . . 6 . . . . 2 1 2 . 2 1 1 Catastrophic 23 | . . . . . 2 5 8 . . . . . . . . . 4 . . . . 1 . . . . . . . . 2 1 . Database Lockouts . | . . . . . . . . . . . . . . . . . . . . . . . . . . . . . . . . . . Manual 86 | . 2 . 1 2 9 11 26 . . . . . . . . . 5 . . 1 . 5 . . . . 11 10 2 . . 1 . Terminals 129 | . 3 . . 2 11 20 31 . 1 . . . . . . . 7 . . . . 12 . . . . 14 16 7 . 2 1 2 Fabricators 10 | . . . . . . . . . . . . . . . . . 6 . . . . 2 . . . . 2 . . . . . . Repair Stations . | . . . . . . . . . . . . . . . . . . . . . . . . . . . . . . . . . . Recycling Units . | . . . . . . . . . . . . . . . . . . . . . . . . . . . . . . . . . . Scanalyzers 2 | . . . . . 2 . . . . . . . . . . . . . . . . . . . . . . . . . . . . Garrison Access 14 | . . . . . 1 2 5 . . . . . . . . . 2 . . . . 1 . . . . . 2 1 . . . . Terminal Hacks 118 | . 2 . 2 1 5 6 8 1 1 22 . . . . 6 . 2 5 . 2 . 6 8 . 17 . 11 9 3 . . . 1 Record 25 | . . . 1 . . . . . 1 6 . . . . . . . 5 . . . . 7 . 5 . . . . . . . . Part Schematic 23 | . . . . . . . 2 . . 8 . . . . 6 . . . . . . . . . 4 . 3 . . . . . . Robot Schematic 5 | . . . . . . . . . . 5 . . . . . . . . . . . . . . . . . . . . . . . Robot Analysis 9 | . . . . 1 2 . 1 . . . . . . . . . . . . . . . . . 4 . . 1 . . . . . Prototype ID Bank 12 | . . . . . . . . . . 3 . . . . . . . . . . . 1 . . 4 . 1 3 . . . . . Open Door 11 | . . . . . . 4 . 1 . . . . . . . . . . . 2 . . 1 . . . . . 2 . . . 1 Branch Access Points 5 | . . . . . . . 1 . . . . . . . . . 1 . . . . 2 . . . . 1 . . . . . . Terminal Index 4 | . . . . . . . 1 . . . . . . . . . . . . . . 1 . . . . 1 1 . . . . . Fabricator Index 1 | . . . . . . . . . . . . . . . . . . . . . . . . . . . 1 . . . . . . Unreport Threat 5 | . . . . . 2 2 . . . . . . . . . . . . . . . 1 . . . . . . . . . . . Disarm Traps 1 | . . . . . . . . . . . . . . . . . . . . . . . . . . . 1 . . . . . . Recall Investigation 1 | . . . . . . . . . . . . . . . . . 1 . . . . . . . . . . . . . . . . Hauler Manifests 5 | . 1 . . . 1 . 1 . . . . . . . . . . . . . . 1 . . . . 1 . . . . . . Registered Components 1 | . . . . . . . . . . . . . . . . . . . . . . . . . . . . 1 . . . . . Zone Layout 9 | . 1 . . . . . 2 . . . . . . . . . . . . . . . . . . . 2 3 1 . . . . Derelict Proto ID Bank 1 | . . . 1 . . . . . . . . . . . . . . . . . . . . . . . . . . . . . . Fabricator Hacks 6 | . . . . . . . . . . . . . . . . . 4 . . . . 1 . . . . 1 . . . . . . Network Status 2 | . . . . . . . . . . . . . . . . . 1 . . . . 1 . . . . . . . . . . . Load Schematic 3 | . . . . . . . . . . . . . . . . . 2 . . . . . . . . . 1 . . . . . . Build 1 | . . . . . . . . . . . . . . . . . 1 . . . . . . . . . . . . . . . . Repair Station Hacks . | . . . . . . . . . . . . . . . . . . . . . . . . . . . . . . . . . . Recycling Unit Hacks . | . . . . . . . . . . . . . . . . . . . . . . . . . . . . . . . . . . Scanalyzer . | . . . . . . . . . . . . . . . . . . . . . . . . . . . . . . . . . . Garrison Access Hacks 7 | . . . . . 1 1 1 . . . . . . . . . 1 . . . . 1 . . . . . 1 1 . . . . Seal Access 7 | . . . . . 1 1 1 . . . . . . . . . 1 . . . . 1 . . . . . 1 1 . . . . Unauthorized Hacks 16 | . 1 . . . . . 2 . . . . . . . . . 1 . . . . 1 . . . . 2 7 2 . . . . Terminals 14 | . 1 . . . . . 2 . . . . . . . . . . . . . . 1 . . . . 1 7 2 . . . . Track 1 | . . . . . . . . . . . . . . . . . . . . . . . . . . . . 1 . . . . . Assimilate 6 | . 1 . . . . . 1 . . . . . . . . . . . . . . 1 . . . . . 2 1 . . . . Botnet 7 | . . . . . . . 1 . . . . . . . . . . . . . . . . . . . 1 4 1 . . . . Fabricators 2 | . . . . . . . . . . . . . . . . . 1 . . . . . . . . . 1 . . . . . . Recompile 2 | . . . . . . . . . . . . . . . . . 1 . . . . . . . . . 1 . . . . . . Repair Stations . | . . . . . . . . . . . . . . . . . . . . . . . . . . . . . . . . . . Recycling Units . | . . . . . . . . . . . . . . . . . . . . . . . . . . . . . . . . . . Scanalyzers . | . . . . . . . . . . . . . . . . . . . . . . . . . . . . . . . . . . Garrison Access . | . . . . . . . . . . . . . . . . . . . . . . . . . . . . . . . . . . Data Cores Recovered 1 | . . . . . . . . . . . . . . . . . . . . . . 1 . . . . . . . . . . . Used . | . . . . . . . . . . . . . . . . . . . . . . . . . . . . . . . . . . Hacking Detections 41 | . 1 . . 1 4 5 7 . 1 . . . . . . . 4 . . . . 5 . . . . 3 6 2 . 1 1 . Full Trace Events . | . . . . . . . . . . . . . . . . . . . . . . . . . . . . . . . . . . Feedback Events . | . . . . . . . . . . . . . . . . . . . . . . . . . . . . . . . . . . Feedback Blocked . | . . . . . . . . . . . . . . . . . . . . . . . . . . . . . . . . . . Robot Schematics Acquired 8 | . . . . . . . . . . 5 . . . . 3 . . . . . . . . . . . . . . . . . . Robots Built . | . . . . . . . . . . . . . . . . . . . . . . . . . . . . . . . . . . Authchips . | . . . . . . . . . . . . . . . . . . . . . . . . . . . . . . . . . . Time . | . . . . . . . . . . . . . . . . . . . . . . . . . . . . . . . . . . Total Robot Build Rating . | . . . . . . . . . . . . . . . . . . . . . . . . . . . . . . . . . . Part Schematics Acquired 36 | . . . . . . . 2 . . 8 . . . . 19 . . . . . . . . . 4 . 3 . . . . . . Parts Built 1 | . . . . . . . . . . . . . . . . . 1 . . . . . . . . . . . . . . . . Authchips 1 | . . . . . . . . . . . . . . . . . 1 . . . . . . . . . . . . . . . . Time 50 | . . . . . . . . . . . . . . . . . 50 . . . . . . . . . . . . . . . . Total Part Build Rating 5 | . . . . . . . . . . . . . . . . . 5 . . . . . . . . . . . . . . . . Parts Repaired . | . . . . . . . . . . . . . . . . . . . . . . . . . . . . . . . . . . Time . | . . . . . . . . . . . . . . . . . . . . . . . . . . . . . . . . . . Parts Recycled . | . . . . . . . . . . . . . . . . . . . . . . . . . . . . . . . . . . Recycled Matter . | . . . . . . . . . . . . . . . . . . . . . . . . . . . . . . . . . . Retrieved Matter . | . . . . . . . . . . . . . . . . . . . . . . . . . . . . . . . . . . Retrieved Components . | . . . . . . . . . . . . . . . . . . . . . . . . . . . . . . . . . . Parts Scanalyzed . | . . . . . . . . . . . . . . . . . . . . . . . . . . . . . . . . . . Part Schematics Acquired . | . . . . . . . . . . . . . . . . . . . . . . . . . . . . . . . . . . Parts Damaged . | . . . . . . . . . . . . . . . . . . . . . . . . . . . . . . . . . . Bothacking | -11 -10 -10 -10 -9 -8 -8 -7 -7 -7 -7 -6 -6 -6 -6 -6 -5 -5 -5 -5 -5 -4 -4 -4 -4 -4 -3 -3 -3 -3 -2 -2 -1 -1 ------------ Run | Jun Mat Min Exi Min Mat Sto Fac Low Low Dat Pro Fac Low Low Zio Pro Fac Upp Upp War Pro Fac Upp Upp Zhi Pro Res Qua Sec Res Tes Acc Com Used RIF Installer . | . . . . . . . . . . . . . . . . . . . . . . . . . . . . . . . . . . Robots Hacked . | . . . . . . . . . . . . . . . . . . . . . . . . . . . . . . . . . . Non-combat . | . . . . . . . . . . . . . . . . . . . . . . . . . . . . . . . . . . Combat . | . . . . . . . . . . . . . . . . . . . . . . . . . . . . . . . . . . Robot Hacks Applied . | . . . . . . . . . . . . . . . . . . . . . . . . . . . . . . . . . . Relay Couplers Released 1 | . . . . . . . . . . . . . . . . . . . . . . . . . . . . . . 1 . . . Machine Destruction 1 | . . . . . . . . . . . . . . . . . . . . . . . . . . . . . . 1 . . . Fabnet Peak Effective % . | . . . . . . . . . . . . . . . . . . . . . . . . . . . . . . . . . . Robots Rewired . | . . . . . . . . . . . . . . . . . . . . . . . . . . . . . . . . . . Allies Hacked . | . . . . . . . . . . . . . . . . . . . . . . . . . . . . . . . . . . Hacks Repelled . | . . . . . . . . . . . . . . . . . . . . . . . . . . . . . . . . . . Allies | -11 -10 -10 -10 -9 -8 -8 -7 -7 -7 -7 -6 -6 -6 -6 -6 -5 -5 -5 -5 -5 -4 -4 -4 -4 -4 -3 -3 -3 -3 -2 -2 -1 -1 -------- Run | Jun Mat Min Exi Min Mat Sto Fac Low Low Dat Pro Fac Low Low Zio Pro Fac Upp Upp War Pro Fac Upp Upp Zhi Pro Res Qua Sec Res Tes Acc Com Total Allies 64 | . 1 3 . . . 2 1 . . . 1 . . . 2 . . . . . . 1 . . . . . 1 1 14 . 15 22 Largest Group 10 | . 1 4 4 4 . 2 1 . . . 1 . . . 2 2 . . . . . 1 . . . . . 1 1 8 . 10 8 Highest-Rated Group 141 | . 10 50 50 50 . 62 26 . . . 96 . . . 45 45 . . . . . 26 . . . . . 26 45 111 . 141 115 Highest-Rated Ally 96 | . 10 16 16 16 . 31 26 . . . 96 . . . 31 31 . . . . . 26 . . . . . 26 45 15 . 15 15 Total Orders . | . . . . . . . . . . . . . . . . . . . . . . . . . . . . . . . . . . Ally Attacks 186 | . . 10 . . . 12 . . . . 20 . . . . 2 . . . . . . . . . . . . . 48 . 33 61 Total Damage 3286 | . . 87 . . . 186 . . . . 605 . . . . 21 . . . . . . . . . . . . . 901 . 389 1097 Kills 24 | . . 4 . . . 2 . . . . 7 . . . . 1 . . . . . . . . . . . . . 4 . 3 3 Allies Corrupted 1 | . . . . . . 1 . . . . . . . . . . . . . . . . . . . . . . . . . . . Allies Melted 2 | . . . . . . . . . . . . . . . . . . . . . . . . . . . . . . . 2 . . Intel | -11 -10 -10 -10 -9 -8 -8 -7 -7 -7 -7 -6 -6 -6 -6 -6 -5 -5 -5 -5 -5 -4 -4 -4 -4 -4 -3 -3 -3 -3 -2 -2 -1 -1 ------- Run | Jun Mat Min Exi Min Mat Sto Fac Low Low Dat Pro Fac Low Low Zio Pro Fac Upp Upp War Pro Fac Upp Upp Zhi Pro Res Qua Sec Res Tes Acc Com Robot Analysis Total 9 | . . . . 1 2 . 1 . . . . . . . . . . . . . . . . . 4 . . 1 . . . . . Derelict Logs Recovered 16 | . . 1 . 1 . . . 1 2 . . . 1 1 2 1 . . 1 . 2 . 2 1 . . . . . . . . . Drone Launches . | . . . . . . . . . . . . . . . . . . . . . . . . . . . . . . . . . . Drone Recoveries . | . . . . . . . . . . . . . . . . . . . . . . . . . . . . . . . . . . Exploration | -11 -10 -10 -10 -9 -8 -8 -7 -7 -7 -7 -6 -6 -6 -6 -6 -5 -5 -5 -5 -5 -4 -4 -4 -4 -4 -3 -3 -3 -3 -2 -2 -1 -1 ------------- Run | Jun Mat Min Exi Min Mat Sto Fac Low Low Dat Pro Fac Low Low Zio Pro Fac Upp Upp War Pro Fac Upp Upp Zhi Pro Res Qua Sec Res Tes Acc Com Turns Passed 18952 | 70 792 1005 828 1142 3896 1411 618 295 129 20 322 89 721 88 383 196 304 340 359 195 632 261 574 192 68 431 233 374 888 488 148 482 978 Spaces Moved 24671 | 39 402 602 412 456 1881 614 1395 714 456 76 770 223 824 330 945 540 881 831 523 503 856 790 795 857 168 617 654 836 1828 1009 448 1091 1305 Core 2 | 2 . . . . . . . . . . . . . . . . . . . . . . . . . . . . . . . . . Treads 4411 | 37 402 602 412 456 1881 614 7 . . . . . . . . . . . . . . . . . . . . . . . . . . Legs 4037 | . . . . . . . . . . . . . . . . . . . . . . . . . . . . . 310 1009 348 1065 1305 Wheels . | . . . . . . . . . . . . . . . . . . . . . . . . . . . . . . . . . . Hover . | . . . . . . . . . . . . . . . . . . . . . . . . . . . . . . . . . . Flight 16071 | . . . . . . . 1388 714 456 76 770 223 824 330 945 540 881 831 523 503 856 790 795 857 168 617 654 836 1494 . . . . Fastest Speed 20 | 50 160 160 160 240 160 151 26 26 26 26 26 26 26 26 26 26 23 23 23 23 23 20 20 20 20 20 20 27 27 30 30 30 30 Average Speed 52 | 154 160 160 200 240 164 165 27 26 26 26 26 26 26 26 26 26 24 23 23 23 23 20 20 20 20 20 25 27 27 30 30 30 30 Slowest Speed 240 | 160 160 160 240 240 167 170 151 26 26 26 26 26 26 26 26 26 26 23 23 23 23 20 20 93 20 20 27 27 30 30 30 30 30 Overloaded Moves . | . . . . . . . . . . . . . . . . . . . . . . . . . . . . . . . . . . Propulsion Burnouts . | . . . . . . . . . . . . . . . . . . . . . . . . . . . . . . . . . . Robots Hopped 16 | . . . . . . . 8 . . . . . 2 . . . . . . . . . . 2 . . 2 1 1 . . . . Cave-ins Triggered 1 | . . . . . . 1 . . . . . . . . . . . . . . . . . . . . . . . . . . . Teleports 1 | . . . . . . . . . . . . . . . . . . . . . . . . . . . . . 1 . . . . Microwarps 10 | . . . . . . . . . . . . . . . . . . . . . . . . . . . . . 1 . 7 2 . Exploration Rate (%) 59 | 4 44 99 70 78 97 84 37 75 64 68 76 6 67 63 85 64 24 77 66 75 78 21 90 68 60 61 19 84 78 30 53 33 25 Regions Visited 33 Branch Regions 24 Pre-discovered Areas 13 | . . 1 1 . . . . . 1 1 . . 1 1 2 . . 1 . . . . 1 . 3 . . . . . . . . Known Exits Taken 23 | . . . . . . 1 1 1 1 1 1 1 1 1 1 1 1 1 1 1 1 1 1 1 1 1 1 1 . . . . . Unknown Exits Taken 10 | 1 1 1 1 1 1 . . . . . . . . . . . . . . . . . . . . . . . 1 1 1 1 . Scrap Searched 38 | . . 1 . 2 . . . 3 3 . 1 . 10 . 3 1 . 3 . . 3 . 3 5 . . . . . . . . . Spaces Dug 474 | . 13 1 . . 6 14 34 13 . . 14 5 35 . . 6 18 36 30 10 7 9 13 1 . 22 7 8 17 50 16 87 2 Terrain Destroyed 862 | . 13 11 . . 7 29 54 13 . . 14 5 35 . . 26 18 36 38 10 27 9 13 33 . 22 7 8 18 104 22 95 195 Melee 252 | . . 1 . . 6 7 31 12 . . 13 5 34 . . 6 18 19 12 10 7 9 9 1 . 19 7 8 17 . . 1 . Projectile 374 | . . . . . 1 1 3 1 . . . . . . . . . 1 1 . 1 . 4 . . 3 . . 1 71 22 69 195 AOE 234 | . 13 10 . . . 21 20 . . . . . . . . 20 . 16 25 . 19 . . 32 . . . . . 33 . 25 . Terrain Rammed . | . . . . . . . . . . . . . . . . . . . . . . . . . . . . . . . . . . Walls Destroyed . | . . . . . . . . . . . . . . . . . . . . . . . . . . . . . . . . . . Machines Disabled . | . . . . . . . . . . . . . . . . . . . . . . . . . . . . . . . . . . Actions | -11 -10 -10 -10 -9 -8 -8 -7 -7 -7 -7 -6 -6 -6 -6 -6 -5 -5 -5 -5 -5 -4 -4 -4 -4 -4 -3 -3 -3 -3 -2 -2 -1 -1 --------- Run | Jun Mat Min Exi Min Mat Sto Fac Low Low Dat Pro Fac Low Low Zio Pro Fac Upp Upp War Pro Fac Upp Upp Zhi Pro Res Qua Sec Res Tes Acc Com Total 29046 | 46 481 632 416 484 2381 842 1562 779 461 75 857 246 1248 330 1079 576 925 936 729 556 1255 862 1179 868 189 873 706 950 2077 1167 382 1196 1701 Wait 2833 | . 20 19 . 3 265 75 83 25 . . 61 9 363 . 116 23 2 78 183 25 372 28 359 6 . 222 24 58 153 48 1 30 182 Move 24470 | 38 401 601 411 455 1880 612 1380 713 455 75 769 222 820 329 944 539 880 830 522 502 855 789 794 852 167 616 649 833 1803 1008 355 1066 1305 Hop 13 | . . . . . . . 6 . . . . . 1 . . . . . . . . . . 2 . . 2 1 1 . . . . Pick Up 119 | 2 12 . 4 5 11 9 7 5 1 . 2 3 1 . 3 . 4 . . 3 1 4 2 . 1 . 6 8 15 1 . 3 6 Fast Attach 152 | 6 1 . . 1 4 6 1 1 . . . . 1 . 3 . 4 1 . 5 1 4 . . 7 . 4 5 17 29 5 17 29 Attach 73 | . 2 . . . 7 3 13 . . . . 4 . . 1 . 4 1 . 1 . 5 . 1 1 . 1 1 9 4 2 8 5 Detach 71 | . . . . 1 . . 1 1 . . 1 2 . . . . 1 1 . . . 5 . . 1 . 3 3 4 24 3 15 5 Swap 158 | . 2 5 1 3 23 17 11 3 2 . 1 . 13 1 3 5 3 2 8 . 6 9 7 4 . 11 3 5 8 . . . 2 Drop 198 | . 1 . . 3 19 13 17 5 1 . . 1 2 . 7 . 5 . . 6 2 4 2 . 6 . 7 16 10 20 4 16 31 Fire 547 | . 39 3 . 4 157 76 10 1 . . 9 . 11 . . 2 . 1 3 . 3 . 3 2 . 3 . 2 4 33 11 38 132 Melee 380 | . . 2 . 9 6 18 33 25 2 . 14 5 36 . 2 7 22 22 13 14 15 14 12 1 6 21 7 18 53 . . 3 . Ram . | . . . . . . . . . . . . . . . . . . . . . . . . . . . . . . . . . . Kick 5 | . . . . . . . . . . . . . . . . . . . . . . . . . . . . . . . 1 . 4 Crush 26 | . 3 2 . . 9 12 . . . . . . . . . . . . . . . . . . . . . . . . . . . Escape Stasis 1 | . . . . . . 1 . . . . . . . . . . . . . . . . . . . . . . . . . . . Rewire . | . . . . . . . . . . . . . . . . . . . . . . . . . . . . . . . . . . Trap . | . . . . . . . . . . . . . . . . . . . . . . . . . . . . . . . . . . Miscellaneous . | . . . . . . . . . . . . . . . . . . . . . . . . . . . . . . . . . . Route ------- -11/Junkyard -10/Materials (discovered 3 exits: [*Mat] / [*Min] / [Sub]) -10/Mines (discovered 4 exits: [*Mat x2] / *Exi / [*Sub]) -10/Exiles (discovered 2 exits: *Min x2) -9/Mines (discovered 2 exits: *Mat x2) -8/Materials (discovered 5 exits: *Fac x3 / *Sto x2) -8/Storage -7/Factory (discovered 3 exits: *Fac / *Low x2) -7/Lower Caves -7/Lower Caves (discovered 2 exits: *Fac / *Dat) -7/Data Miner -6/Proximity Caves -6/Factory (discovered 2 exits: *Low x2) -6/Lower Caves -6/Lower Caves -6/Zion -5/Proximity Caves -5/Factory (discovered 5 exits: Fac / *Upp x2 / Ext x2) -5/Upper Caves -5/Upper Caves (discovered 2 exits: Fac / *War) -5/Warlord -4/Proximity Caves -4/Factory (discovered 2 exits: *Upp x2) -4/Upper Caves -4/Upper Caves -4/Zhirov -3/Proximity Caves -3/Research (discovered 3 exits: Arm / *Qua x2) -3/Quarantine (discovered 2 exits: [*Res] / *Sec) -3/Section 7 -2/Research (discovered 3 exits: *Acc x2 / *Tes) -2/Testing -1/Access -1/Command (discovered 1 exit: [Sur]) History --------- Turn | Location | Event 12 | -11/Junkyard | Discovered new exit (range 16) 71 | -11/Junkyard | Entered Materials 300 | -10/Materials | Build established: Mutant 520 | -10/Materials | Discovered new exit (range 12) 540 | -10/Materials | Discovered new exit (range 12) 593 | -10/Materials | Discovered new exit (range 11) 836 | -10/Materials | Core integrity fell below 50% 863 | -10/Materials | Entered Mines 863 | -10/Mines | Accompanied by 1 ally 934 | -10/Mines | Discovered new exit (range 12) 1027 | -10/Mines | Assisted by bots powering up and referring to "LRC-V3" 1101 | -10/Mines | Discovered new exit (range 11) 1280 | -10/Mines | Assembled infested the area 1284 | -10/Mines | Discovered new exit (range 9) 1324 | -10/Mines | Build established: Commander-Mutant 1561 | -10/Mines | Deemed a non-threat by the Exiles lab entrance 1561 | -10/Mines | Discovered new exit (range 5) 1868 | -10/Mines | Entered Exiles 1868 | -10/Exiles | Accompanied by 4 allies 1892 | -10/Exiles | Discovered new exit (range 15) 1908 | -10/Exiles | Met 8R-AWN 1934 | -10/Exiles | Met EX-HEX 2016 | -10/Exiles | Met EX-DEC 2044 | -10/Exiles | Learned location of Zion (-6) 2081 | -10/Exiles | Met EX-BIN 2349 | -10/Exiles | Aligned with FarCom system 2352 | -10/Exiles | Given EX-Vault access code 2412 | -10/Exiles | Opened EX-Vault 2424 | -10/Exiles | Found Gui. Plasma Cannon 2432 | -10/Exiles | Found Field Lobotomy Kit 2438 | -10/Exiles | Found 0b10 Alert Chip 2484 | -10/Exiles | Warned to stay clear of 0b10 Research branches 2670 | -10/Exiles | Discovered new exit (range 14) 2696 | -10/Exiles | Stole three prototypes: 0b10 Alert Chip, Gui. Plasma Cannon, Field Lobotomy Kit 2696 | -10/Exiles | Entered Mines 2696 | -9/Mines | Accompanied by 4 allies 2726 | -9/Mines | Met a Derelict bent on vengeance 2851 | -9/Mines | Discovered new exit (range 7) 3133 | -9/Mines | Excavation squad dispatched 3133 | -9/Mines | A large section of the Mines collapsed 3411 | -9/Mines | Discovered new exit (range 10) 3418 | -9/Mines | Received a Rocket Launcher from a helpful Derelict 3452 | -9/Mines | Build established: Mutant 3505 | -9/Mines | Learned location of 1 exit from Materials 3596 | -9/Mines | Found a damaged Exp. Sensor Array with a note attached 3605 | -9/Mines | Found Prototype Device 3838 | -9/Mines | Entered Materials 3838 | -8/Materials | Evolved 4 slots: Propulsion x2, Utility x2 3839 | -8/Materials | Identified exit to Factory 3841 | -8/Materials | Identified Exp. Sensor Array 4291 | -8/Materials | Build established: Scavenger-Mutant 5318 | -8/Materials | Discovered new exit (range 15) 5947 | -8/Materials | Build established: Mutant 6261 | -8/Materials | Discovered exit to Factory (range 9) 6445 | -8/Materials | Discovered new exit (range 9) 7470 | -8/Materials | Lost 5 parts (1p3u1w) 7580 | -8/Materials | Discovered exit to Factory (range 8) 7734 | -8/Materials | Entered Storage 7819 | -8/Storage | Build established: Scavenger-Mutant 8572 | -8/Storage | Crushed by falling debris 8573 | -8/Storage | Core integrity fell below 50% 8603 | -8/Storage | Lost 3 parts (1p1u1w) 8883 | -8/Storage | Met a pair of Derelict thieves 8972 | -8/Storage | System corruption reached 10% 9012 | -8/Storage | Destroyed 7 combat bots 9114 | -8/Storage | Discovered exit to Factory (range 16) 9145 | -8/Storage | Entered Factory 9145 | -7/Factory | Evolved 2 slots: Utility x2 9147 | -7/Factory | FarCom data flow suspended 9260 | -7/Factory | Identified exit to Lower Caves 9430 | -7/Factory | Build established: Hacker-Scout 9612 | -7/Factory | Discovered new exit (range 14) 9733 | -7/Factory | Destroyed 7 combat bots 9763 | -7/Factory | Entered Lower Caves 9980 | -7/Lower Caves | Encountered a Warlord checkpoint 10022 | -7/Lower Caves | Learned Factory terminal intel 10044 | -7/Lower Caves | Discovered new exit (range 7) 10057 | -7/Lower Caves | Identified exit to Lower Caves 10058 | -7/Lower Caves | Entered another Lower Caves area 10058 | -7/Lower Caves | Spotted 4G-B2F(f) 10058 | -7/Lower Caves | Spotted UX-E16(f) 10059 | -7/Lower Caves | Encountered a Master Thief 10059 | -7/Lower Caves | Encountered a Master Thief 10072 | -7/Lower Caves | Discovered new exit (range 9) 10115 | -7/Lower Caves | Gui. Plasma Cannon stolen by Master Thief 10115 | -7/Lower Caves | Field Lobotomy Kit stolen by Master Thief 10184 | -7/Lower Caves | Discovered new exit (range 10) 10187 | -7/Lower Caves | Identified exit to Data Miner 10187 | -7/Lower Caves | Entered Data Miner 10187 | -7/Data Miner | Discovered new exit (range 6) 10192 | -7/Data Miner | Met Data Miner 10199 | -7/Data Miner | Learned location of Section 7 (-3) 10199 | -7/Data Miner | Acquired the access code to Warlord's prototype stash 10201 | -7/Data Miner | Received God Mode back door access code from Data Miner 10207 | -7/Data Miner | Identified exit to Proximity Caves 10207 | -7/Data Miner | Entered Proximity Caves 10272 | -6/Proximity Caves | Escorted by Enhanced Grunt 10386 | -6/Proximity Caves | Build established: Hacker-Sprinter 10471 | -6/Proximity Caves | Discovered new exit (range 13) 10527 | -6/Proximity Caves | Attracted the attention of an 0b10 checkpoint 10529 | -6/Proximity Caves | Identified exit to Factory 10529 | -6/Proximity Caves | Entered Factory 10529 | -6/Factory | Evolved 2 slots: Utility x2 10530 | -6/Factory | Identified exit to Lower Caves 10531 | -6/Factory | Loaded intel: 26 terminal locations 10617 | -6/Factory | Discovered exit to Lower Caves (range 4) 10618 | -6/Factory | Entered Lower Caves 10636 | -6/Lower Caves | Encountered a Warlord checkpoint 10994 | -6/Lower Caves | Spotted B-75 Beast 11234 | -6/Lower Caves | Discovered new exit (range 15) 11339 | -6/Lower Caves | Identified exit to Lower Caves 11339 | -6/Lower Caves | Entered another Lower Caves area 11339 | -6/Lower Caves | Spotted 7C-XI9(f) 11339 | -6/Lower Caves | Spotted QM-55Y(f) 11340 | -6/Lower Caves | Encountered a Master Thief 11340 | -6/Lower Caves | Encountered a Master Thief 11413 | -6/Lower Caves | Encountered a Warlord checkpoint 11423 | -6/Lower Caves | Discovered new exit (range 13) 11426 | -6/Lower Caves | Identified exit to Zion 11427 | -6/Lower Caves | Entered Zion 11433 | -6/Zion | Found CR-A16's Pointy Stick 11450 | -6/Zion | Given the Hacking Drone Bay 11454 | -6/Zion | Discovered new exit (range 16) 11491 | -6/Zion | Gained Derelict followers 11499 | -6/Zion | Learned Factory scanalyzer intel 11511 | -6/Zion | Learned location of Extension (-5) 11583 | -6/Zion | Learned 4 Factory zone layouts 11589 | -6/Zion | Acquired unknown access codes intercepted by a Zionite 11623 | -6/Zion | Found Prototype Special Weapon 11623 | -6/Zion | Identified RU-N14's Throwing Claymores 11628 | -6/Zion | Found RU-N14's Throwing Claymores 11692 | -6/Zion | Identified exit to Proximity Caves 11810 | -6/Zion | Entered Proximity Caves 11810 | -5/Proximity Caves | Accompanied by 2 allies 11843 | -5/Proximity Caves | Learned location of 1 exit from Factory 11879 | -5/Proximity Caves | Acquired the password to a Derelict Tinkerer's latest research 12000 | -5/Proximity Caves | Caught by Unaware searching for contraband prototypes 12003 | -5/Proximity Caves | Discovered new exit (range 15) 12005 | -5/Proximity Caves | Identified exit to Factory 12006 | -5/Proximity Caves | Entered Factory 12006 | -5/Factory | Evolved 2 slots: Power x1, Propulsion x1 12007 | -5/Factory | Identified exit to Factory 12009 | -5/Factory | Loaded intel: 4 scanalyzer locations 12013 | -5/Factory | Identified exit to Upper Caves 12013 | -5/Factory | Identified exit to Extension 12204 | -5/Factory | Fabricated Cld. Cesium-ion Thruster (x1) 12273 | -5/Factory | Build established: Hacker-Scout 12310 | -5/Factory | Entered Upper Caves 12493 | -5/Upper Caves | Encountered a Warlord checkpoint 12594 | -5/Upper Caves | Discovered new exit (range 10) 12599 | -5/Upper Caves | Learned Armory emergency access door positions 12599 | -5/Upper Caves | Learned Armory stockpile data 12610 | -5/Upper Caves | Found Alien Artifact 12610 | -5/Upper Caves | Identified Dimensional Node Initializer 12610 | -5/Upper Caves | Initialized slip node 12639 | -5/Upper Caves | Identified exit to Upper Caves 12650 | -5/Upper Caves | Entered another Upper Caves area 12690 | -5/Upper Caves | Discovered exit to Factory (range 14) 12970 | -5/Upper Caves | Learned location of 1 exit from Proximity Caves 12992 | -5/Upper Caves | Spotted MV-WHQ(f) 12993 | -5/Upper Caves | Encountered a Master Thief 12993 | -5/Upper Caves | Spotted QE-X0M(f) 12993 | -5/Upper Caves | Spotted PQ-GZK(f) 12993 | -5/Upper Caves | Spotted P7-8K2(f) 12994 | -5/Upper Caves | Encountered a Master Thief 12994 | -5/Upper Caves | Encountered a Master Thief 12996 | -5/Upper Caves | Encountered a Master Thief 13006 | -5/Upper Caves | Discovered new exit (range 13) 13009 | -5/Upper Caves | Identified exit to Warlord 13009 | -5/Upper Caves | Entered Warlord 13094 | -5/Warlord | Received a Watcher feed algorithm from an ecstatic Tinkerer 13129 | -5/Warlord | Visited the Vortex Lab 13130 | -5/Warlord | Found Prototype Piercing Weapon 13132 | -5/Warlord | Identified Vortex Lance 13137 | -5/Warlord | Warlord's base attacked by MAIN.C 13144 | -5/Warlord | Met Warlord 13147 | -5/Warlord | Opened Warlord's prototype stash 13148 | -5/Warlord | Found Prototype Hackware 13158 | -5/Warlord | Found Prototype Device 13158 | -5/Warlord | Identified System Purifier 13161 | -5/Warlord | Found Prototype Device 13161 | -5/Warlord | Identified Exp. Cloaking Device 13197 | -5/Warlord | Opened side exit 13202 | -5/Warlord | Discovered new exit (range 9) 13203 | -5/Warlord | Identified exit to Proximity Caves 13204 | -5/Warlord | Entered Proximity Caves 13430 | -4/Proximity Caves | Build established: Hacker-Ninja 13722 | -4/Proximity Caves | Received a Behemoth hack from an annoying Tinkerer 13770 | -4/Proximity Caves | Learned Research terminal intel 13824 | -4/Proximity Caves | Learned Research trap positions 13836 | -4/Proximity Caves | Entered Factory 13836 | -4/Factory | Evolved 2 slots: Propulsion x1, Utility x1 13836 | -4/Factory | Identified System Mapper 13848 | -4/Factory | Identified exit to Upper Caves 14050 | -4/Factory | Spotted B-86 Titan 14097 | -4/Factory | Entered Upper Caves 14130 | -4/Upper Caves | Encountered a Warlord checkpoint 14137 | -4/Upper Caves | Build established: Hacker-Scout 14156 | -4/Upper Caves | Learned 8 Factory zone layouts 14156 | -4/Upper Caves | Learned Research security intel 14663 | -4/Upper Caves | Learned Research stockpile data 14664 | -4/Upper Caves | Discovered new exit (range 2) 14664 | -4/Upper Caves | Identified exit to Upper Caves 14671 | -4/Upper Caves | Entered another Upper Caves area 14671 | -4/Upper Caves | Spotted V3-CGG(f) 14672 | -4/Upper Caves | Encountered a Master Thief 14777 | -4/Upper Caves | Learned Research trap positions 14860 | -4/Upper Caves | Discovered new exit (range 9) 14863 | -4/Upper Caves | Identified exit to Zhirov 14863 | -4/Upper Caves | Entered Zhirov 14863 | -4/Zhirov | Discovered new exit (range 3) 14867 | -4/Zhirov | Met Zhirov 14871 | -4/Zhirov | Learned location of Quarantine (-3) 14871 | -4/Zhirov | Learned location of Testing (-2) 14871 | -4/Zhirov | Learned location of Command (-1) 14873 | -4/Zhirov | Zhirov requested help retrieving the SGEMP Prototype 14876 | -4/Zhirov | Found Alien Artifact 14876 | -4/Zhirov | Identified Integrated Reactor 14876 | -4/Zhirov | Installed Integrated Reactor, increased core energy generation (+10) 14881 | -4/Zhirov | Found Alien Artifact 14931 | -4/Zhirov | Identified exit to Proximity Caves 14931 | -4/Zhirov | Entered Proximity Caves 15360 | -3/Proximity Caves | Discovered new exit (range 11) 15362 | -3/Proximity Caves | Identified exit to Research 15362 | -3/Proximity Caves | Entered Research 15362 | -3/Research | Evolved 2 slots: Propulsion x1, Utility x1 15363 | -3/Research | Identified exit to Armory 15364 | -3/Research | Loaded intel: 98 trap records 15367 | -3/Research | Loaded intel: 26 terminal locations 15376 | -3/Research | Identified exit to Quarantine 15539 | -3/Research | Found Prototype Processor 15547 | -3/Research | Identified Spectral Analyzer 15582 | -3/Research | Spotted B-86 Titan 15595 | -3/Research | Entered Quarantine 15660 | -3/Quarantine | Found Alien Energy Cannon 15660 | -3/Quarantine | Identified Core Cannon 15688 | -3/Quarantine | Build established: Wizard-Scout 15714 | -3/Quarantine | Discovered new exit (range 6) 15723 | -3/Quarantine | Found Alien Artifact 15723 | -3/Quarantine | Identified Phase Redirector 15730 | -3/Quarantine | Found Alien Artifact 15802 | -3/Quarantine | Found Alien Artifact 15832 | -3/Quarantine | Found Alien Slashing Weapon 15864 | -3/Quarantine | Identified Sigix Broadsword 15869 | -3/Quarantine | Found Dimensional Node Initializer 15871 | -3/Quarantine | Found Alien Artifact 15900 | -3/Quarantine | Found Alien Artifact 15920 | -3/Quarantine | Spotted Fortress 15936 | -3/Quarantine | Discovered new exit (range 18) 15940 | -3/Quarantine | Identified exit to Section 7 15969 | -3/Quarantine | Entered Section 7 15970 | -3/Section 7 | Identified Core Reset Matrix 15970 | -3/Section 7 | Identified Terrabomb 15970 | -3/Section 7 | Identified Transdimensional Reconstructor 15970 | -3/Section 7 | Identified Subatomic Replicator 15970 | -3/Section 7 | Identified Hpw. Transdimensional Reconstructor 15970 | -3/Section 7 | Used Core Reset Matrix 15974 | -3/Section 7 | Sensed 25 artifacts in vicinity 16042 | -3/Section 7 | Found Microwarp Drive 16190 | -3/Section 7 | Found Integrated Mediator 16190 | -3/Section 7 | Installed Integrated Mediator, increased core attachment efficiency. 16361 | -3/Section 7 | Spotted Alpha 7 16391 | -3/Section 7 | Found Integrated Reactor 16391 | -3/Section 7 | Installed Integrated Reactor, increased core energy generation (+10) 16405 | -3/Section 7 | Discovered new exit (range 10) 16412 | -3/Section 7 | Initialized slip node 16573 | -3/Section 7 | Found Sigix Sheargun 16575 | -3/Section 7 | Found Sigix Sheargun 16603 | -3/Section 7 | Spotted B-99 Colossus 16615 | -3/Section 7 | Found Integrated Dissipator 16615 | -3/Section 7 | Installed Integrated Dissipator, increased core heat dissipation (+20) 16617 | -3/Section 7 | Found Integrated Dissipator 16617 | -3/Section 7 | Installed Integrated Dissipator, increased core heat dissipation (+20) 16619 | -3/Section 7 | Found Integrated Dissipator 16619 | -3/Section 7 | Installed Integrated Dissipator, increased core heat dissipation (+20) 16634 | -3/Section 7 | Used Subatomic Replicator to replicate LRC Boosters 16635 | -3/Section 7 | Found LRC Boosters 16635 | -3/Section 7 | Installed LRC Boosters, increased mass support (+10) 16637 | -3/Section 7 | Installed LRC Boosters, increased mass support (+10) 16639 | -3/Section 7 | Found LRC Matter Compressor 16639 | -3/Section 7 | Installed LRC Matter Compressor, increased matter storage capacity (+125) 16654 | -3/Section 7 | Found Integrity Redistributor 16703 | -3/Section 7 | Integrated with Sigix Exoskeleton 16769 | -3/Section 7 | Found Sigix Sheargun 16844 | -3/Section 7 | Warped through subspace to slip node 16857 | -3/Section 7 | Entered Research 16857 | -2/Research | Warlord forces began assault on 0b10 16857 | -2/Research | Evolved 2 slots: Utility x1, Weapon x1 16862 | -2/Research | Emitted hypermatrix ping 16867 | -2/Research | Assembled emerged from beneath the floor 16958 | -2/Research | Spotted B-90 Cyclops 16967 | -2/Research | Research machine network offline 17018 | -2/Research | Build established: Alien-Sigix 17022 | -2/Research | Discovered new exit (range 16) 17066 | -2/Research | Assembled emerged from beneath the floor 17112 | -2/Research | Borebot progress halted 17131 | -2/Research | Discovered new exit (range 18) 17224 | -2/Research | Discovered new exit (range 18) 17345 | -2/Research | Entered Testing 17354 | -2/Testing | Garrison activated, responded to threat 17363 | -2/Testing | Found Prototype Device 17363 | -2/Testing | Identified Exp. Thermal Shield 17388 | -2/Testing | Spotted PY-U61ZFB50LH 17423 | -2/Testing | Found Prototype Device 17423 | -2/Testing | Identified Exp. Hardlight Generator 17470 | -2/Testing | Spotted Striker 17484 | -2/Testing | Discovered new exit (range 18) 17493 | -2/Testing | Entered Access 17493 | -1/Access | Evolved 2 slots: Utility x2 17498 | -1/Access | Emitted hypermatrix ping 17503 | -1/Access | Assembled emerged from beneath the floor 17583 | -1/Access | Assembled emerged from beneath the floor 17621 | -1/Access | Garrison activated, responded to threat 17664 | -1/Access | Incoming assault squad redirected 17743 | -1/Access | First assault squad dispatched 17766 | -1/Access | Incoming assault squad redirected 17856 | -1/Access | Found Prototype Processor 17856 | -1/Access | Identified Exp. Terrain Scan Processor 17889 | -1/Access | Found Unknown Device 17889 | -1/Access | Identified Adv. Force Booster 17947 | -1/Access | Discovered new exit (range 17) 17975 | -1/Access | Entered Command 17980 | -1/Command | Emitted hypermatrix ping 17985 | -1/Command | Assembled emerged from beneath the floor 18104 | -1/Command | Spotted Striker 18106 | -1/Command | Spotted Alpha 7 18112 | -1/Command | Destroyed Striker 18115 | -1/Command | Spotted Executioner 18122 | -1/Command | Destroyed Executioner 18128 | -1/Command | Destroyed Alpha 7 18137 | -1/Command | Found Prototype Processor 18137 | -1/Command | Identified Exp. Targeting Computer 18159 | -1/Command | Spotted Striker 18160 | -1/Command | Spotted Alpha 7 18175 | -1/Command | Spotted Executioner 18175 | -1/Command | Destroyed Striker 18186 | -1/Command | Destroyed Executioner 18199 | -1/Command | Destroyed Alpha 7 18202 | -1/Command | Found Prototype Processor 18202 | -1/Command | Identified Exp. Core Analyzer 18207 | -1/Command | Found Prototype Processor 18207 | -1/Command | Identified Exp. Target Analyzer 18210 | -1/Command | Found Unknown Device 18210 | -1/Command | Identified Antimissile System 18212 | -1/Command | Found Prototype Device 18212 | -1/Command | Identified Exp. ECM Suite 18218 | -1/Command | Found Exp. Targeting Computer 18225 | -1/Command | First assault squad dispatched 18230 | -1/Command | Spotted Executioner 18234 | -1/Command | Destroyed Executioner 18243 | -1/Command | Assembled emerged from beneath the floor 18254 | -1/Command | Spotted Executioner 18288 | -1/Command | Incoming assault squad redirected 18312 | -1/Command | Spotted B-99 Colossus 18333 | -1/Command | Assembled emerged from beneath the floor 18550 | -1/Command | Spotted Combat Programmer 18551 | -1/Command | Spotted Combat Programmer 18559 | -1/Command | Destroyed Combat Programmer 18564 | -1/Command | Destroyed Combat Programmer 18611 | -1/Command | Spotted M Guard 18630 | -1/Command | Destroyed M Guard 18641 | -1/Command | Found Prototype Device 18641 | -1/Command | Identified AEGIS Remote Shield 18644 | -1/Command | Found Prototype Device 18644 | -1/Command | Identified Thermal Barrier 18744 | -1/Command | Destroyed M Guard 18744 | -1/Command | All MAIN.C guards destroyed 18762 | -1/Command | Found Exp. Targeting Computer 18830 | -1/Command | 0b10 Conduit disabled 18838 | -1/Command | Met MAIN.C 18862 | -1/Command | MAIN.C's shell transforms into a squad of autonomous robots 18862 | -1/Command | Destroyed MAIN.C Shell 18862 | -1/Command | Spotted M Shell/Def 18862 | -1/Command | Spotted M Shell/Atk 18862 | -1/Command | Spotted M Shell/Def 18862 | -1/Command | Spotted M Shell/Atk 18862 | -1/Command | Spotted M Shell/Atk 18862 | -1/Command | Spotted M Shell/Def 18862 | -1/Command | Spotted M Shell/Atk 18862 | -1/Command | Spotted M Shell/Def 18864 | -1/Command | MAIN.C activated Command garrisons 18864 | -1/Command | Used Terrabomb 18865 | -1/Command | Sigix Exoskeleton integrity reduced to 80% 18873 | -1/Command | Discovered new exit (range 16) 18911 | -1/Command | Sigix Exoskeleton integrity reduced to 60% 18931 | -1/Command | Core integrity fell below 50% 18938 | -1/Command | Sigix Exoskeleton integrity reduced to 40% 18947 | -1/Command | Sigix Exoskeleton integrity reduced to 20% 18947 | -1/Command | Destroyed M Shell/Def 18950 | -1/Command | Core integrity fell below 20% 18953 | -1/Command | Exoskeleton Destroyed Last Messages --------------- 18942_ S-43 Plague destroyed. 18942_ Quantum Shear penetrates P-80 Master. 18942_ P-80 Master destroyed. 18944_ Quantum Shear penetrates MAIN.C. 18944_ Terminal disabled. 18944_ Sigix Sheargun blasted off. 18944_ Sigix Sheargun crushed and broken. 18947_ Acquired 5 matter. 18947_ Exo-853F: "Integrity reduced to 20%, immediate ERK application recommended to prevent critical system failure." 18947_ Quantum Shear penetrates MAIN.C. 18947_ M Shell/Def destroyed. 18947_ Quantum Shear penetrates MAIN.C. 18948_ C-30 ARC bursts open, deploying its payload. 18948_ H-88 Terminator unfolds itself. 18948_ Imp. Weapon Cycler destroyed. 18948_ Critical hit (Blast). 18949_ Quantum Shear penetrates MAIN.C. 18952_ Knocked back. 18953_ Sigix Exoskeleton destroyed. Map ----- +----------------------------------------------------+ | """ " " """" ####### | | " " " " ####### | | #####""""""" """"" """""""""" " ####### | | #### " " " " " """ " """"""""####### | | #### " " " " """ " " " ####### | | ####!! " " " """""""""""""""############## | | ####!! "" " " " ?#???########## | | #### """" " """""""""""""""????????????##?? | | #### % T"" " ????????????????? | | #### """" " ???????????????? | | #### "" # " ###?????????????? | | + # " ######????????????? | | #### ### #"" #########???????????? | | #####/########+####### ################??????????? | | ## ## #######################?????????? | | ##| ## #######################?????????? | | ## ## "" ########################????????? | | ## #" """#########################???????? | | #### ### T"#########################???????? | | #### " " ] """## ######################???????? | | #### ### % ### ######################??????? | | #### " # ;### [####################??????? | | #### #"" [ % ==*=%###################??????? | | ### # =%[# ;;=!=%iY###################??????? | | ### %=%=%= h hiiMYY##################??????? | | ### "" [*= !!%!%Y%X%#################?????? | | ### " "####"""## ################??????? | | ####+""#"" ######"""###################??????? | | # ## ##]]] =##################??????? | | #########]]] ] =##################??????? | | "" #########!!! =##################??????? | | """" #########!!!**==#################???????? | | """" #################################???????? | | "" #################################???????? | | ################################????????? | | ###############################?????????? | | ########################################?????????? | | #######################################??????????? | | ######################################???????????? | | #####################################????????????? | | ###################################??????????????? | | ##################################???????????????? | | ??#############################??????????????????? | | ???????#??#???#??#??#???##???????????????????????? | | ?????????????????????????????????????????????????? | | ?????????????????????????????????????????????????? | | ?????????????????????????????????????????????????? | | ?????????????????????????????????????????????????? | | ?????????????????????????????????????????????????? | | ?????????????????????????????????????????????????? | +----------------------------------------------------+ Best States ------------- Heat Dissipation 172 Energy Generation 85 Energy Capacity 890 Matter Stores 425 Matter Capacity 425 Sight Range 16 Robot Scan Range 20 Terrain Scan Range 20 Terrain Scan Density 210 Jamming Range 16 Cloak Strength 4 Power Amplification 20 Armor Coverage 750 Resistance: KI 50 Resistance: TH 50 Resistance: EX 50 Resistance: EM 50 Resistance: I 50 Resistance: S 50 Resistance: P 50 Utility Shielding 66 Point Defense Rating 240 Weapon Cycling 20 Evasion (%) 69 Targeting Accuracy 24 Target Analysis 10 Core Analysis 8 Recoil Reduction 4 Force Boost 40 Offensive Hacking 48 Defensive Hacking 20 Authchip Count 1 Item Schematics ----------------- None Robot Schematics ------------------ None Fabricated ------------ Cld. Cesium-ion Thruster | x1 | -5/Factory | Authchip Alien Tech Used ----------------- Dimensional Node Initializer Integrated Reactor Core Cannon Phase Redirector Sigix Broadsword Core Reset Matrix Integrated Mediator Integrated Dissipator Subatomic Replicator LRC Boosters LRC Matter Compressor Sigix Exoskeleton Sigix Sheargun Microwarp Drive Transdimensional Reconstructor Terrabomb Achievements -------------- None Challenges ------------ None Game ------ Seed SiegeCentriumCompactor Manual? 0 Play Time 04:22:27 Cumulative 419.1 hours Start 2023.06.25 @ 16:21:19 End 2023.06.26 @ 18:59:10 Sessions 5 Manual Loads 0 Difficulty Rogue Special Mode None Game No. 496 Rogue 409 Adventurer 87 Explorer 0 Win Type - Total 21 Types 7/0/12/1/1/0/0/0/0 Lore% 85 Gallery% 90 Achievement% 73 Wizard Run 0 Options --------- ASCII 0 Keyboard 1 Movement Numpad Keybinds 0 Fullscreen 1 Font 18/SmallcapsGlow Map View 76x50 Tactical HUD 1 Map Filters NONE Filters NONE Steam 1 RUN: f20c20d7-c0cc-4052-a956-1a40ec3cf0ae